Cogmind - Beta 10 X2 @@@ ROGUE MODE // 2020.09.08 @ 22:56:04 Player: Torako Result: Destroyed by G-67 Veteran with Plasma Rifle Performance ------------- Evolutions (5) 2500 Regions Visited (19) 3800 Robots Destroyed (166) 830 Value Destroyed (5914) 5914 Prototype IDs (41) 820 Alien Tech Used (0) 0 Bonus (5135) 5135 TOTAL SCORE: 18999 Bonus ------- High Alert Combat Kills 153 Follower Combat Kills 2641 Network Hubs Disabled 200 Met Data Miner 300 Met Warlord at Base 500 MAIN.C Attacked Warlord 500 Warlord Defense Kill 1460 Built Enhanced Grunts 300 A7 Reached Mainframe 300 Met R17 at Cetus 500 Friendly Fire -1719 Cogmind --------- Core Integrity 0/1000 Matter 300/300 Energy 69/100 System Corruption 0% Temperature Cool (0) Movement Core (50) Location -5/Warlord Parts ------- > --- POWER (1) -------- (None) > --- PROPULSION (4) --- (None) > --- UTILITY (10) ----- (None) > --- WEAPON (2) ------- (None) > --- INVENTORY (4) ---- Vortex Chain Reactor EMDS Peak State ------------ > --- POWER ------------ Light Angular Momentum Engine > --- PROPULSION ------- Centrium Heavy Treads Centrium Heavy Treads > --- UTILITY ---------- High-capacity Storage Unit High-capacity Storage Unit High-capacity Storage Unit High-capacity Storage Unit High-capacity Storage Unit Experimental Sensor Array Improved Signal Interpreter Advanced Terrain Scan Processor Experimental Targeting Computer Experimental Phase Shifter > --- WEAPON ----------- HERF Cannon Phasing Sabre > --- INVENTORY -------- Quantum Reactor Vortex Chain Reactor Centrium Heavy Treads Centrium Heavy Treads Centrium Heavy Treads Improved Heat Sink Improved Energy Well Improved Energy Well High-capacity Matter Pod Advanced Terrain Scanner Improved Target Analyzer Advanced Particle Charger Hardened Medium Armor Plating Layered Medium Armor Plating Centrium Medium Armor Plating Centrium Medium Armor Plating Insulated Plating Light Regenerative Plating Advanced Thermal Shield Improved Force Field Makeshift Hacking Suite System Shield System Backup Module Improved System Backup Module Long-range Tractor Beam Drone Bay Precision Shock Rifle Advanced Variable Charge Gun EMDS Plasma Cannon KE Penetrator KE Penetrator Proton Missile Launcher Smartbomb Launcher Remote Datajack Improved Plasma Cutter Vortex Lance Vortex Lance [Rating: 115] Favorites ----------- Power Nuclear Core Engine Reinforced Deuterium Engine Power Core Nuclear Core Reactor Quantum Reactor Propulsion Centrium Heavy Treads Treads Centrium Heavy Treads Leg Aluminum Leg Wheel Armored Wheel Utility High-capacity Storage Unit Device Experimental Sensor Array Storage High-capacity Storage Unit Processor Improved Signal Interpreter Protection Light Regenerative Plating Weapon Precision Shock Rifle Energy Gun Precision Shock Rifle Energy Cannon HERF Cannon Ballistic Gun Coil Gun Launcher Rocket Launcher Slashing Weapon Katana Piercing Weapon Vortex Lance Build | -11 -10 -10 -9 -9 -8 -7 -7 -7 -7 -6 -6 -6 -6 -6 -6 -5 -5 -5 -5 ------- Run | Scr Mat Min Mat Sto Mat Fac Low Low Dat Pro Fac Ext Cet Arc Hub Fac Upp Upp War Slots Evolved 10 | . . . 2 . 2 2 . . . . 2 . . . . 2 . . . Power . | . . . . . . . . . . . . . . . . . . . . Propulsion 2 | . . . . . . 1 . . . . . . . . . 1 . . . Utility 8 | . . . 2 . 2 1 . . . . 2 . . . . 1 . . . Weapon . | . . . . . . . . . . . . . . . . . . . . Parts Attached 279 | . 10 5 32 12 22 33 12 2 . 8 15 36 10 2 13 28 11 6 22 Power 17 | . . . 1 . 2 5 . . . 1 . 1 1 . 1 2 . . 3 Engine 9 | . . . 1 . . 1 . . . 1 . 1 . . 1 2 . . 2 Core 6 | . . . . . 2 4 . . . . . . . . . . . . . Reactor 2 | . . . . . . . . . . . . . 1 . . . . . 1 Propulsion 32 | . 4 1 5 1 2 4 . . . . . 8 2 . 1 1 . . 3 Treads 15 | . 2 . 1 . 1 2 . . . . . 2 2 . 1 1 . . 3 Leg 1 | . . . . . . . . . . . . 1 . . . . . . . Wheel 16 | . 2 1 4 1 1 2 . . . . . 5 . . . . . . . Hover . | . . . . . . . . . . . . . . . . . . . . Flight . | . . . . . . . . . . . . . . . . . . . . Utility 136 | . 5 2 11 6 11 11 9 1 . 5 10 16 3 1 8 18 8 1 10 Device 64 | . 2 1 6 2 4 5 6 1 . 2 3 7 . . 4 11 4 1 5 Storage 19 | . 3 1 . 2 2 2 . . . 1 2 2 1 . . 2 1 . . Processor 6 | . . . 1 . . 1 1 . . . . . . 1 . 1 . . 1 Hackware . | . . . . . . . . . . . . . . . . . . . . Protection 47 | . . . 4 2 5 3 2 . . 2 5 7 2 . 4 4 3 . 4 Artifact . | . . . . . . . . . . . . . . . . . . . . Weapon 94 | . 1 2 15 5 7 13 3 1 . 2 5 11 4 1 3 7 3 5 6 Energy Gun 27 | . . . 5 3 2 4 2 . . 1 . 5 2 . . 3 . . . Energy Cannon 17 | . 1 . 6 2 2 1 . . . . . . 1 . . 2 . 1 1 Ballistic Gun 22 | . . 1 3 . 1 3 . . . . 3 1 1 1 3 2 1 1 1 Ballistic Cannon . | . . . . . . . . . . . . . . . . . . . . Launcher 11 | . . 1 1 . 2 2 . . . . . 1 . . . . 1 1 2 Special Weapon . | . . . . . . . . . . . . . . . . . . . . Impact Weapon . | . . . . . . . . . . . . . . . . . . . . Slashing Weapon 16 | . . . . . . 3 1 1 . 1 2 4 . . . . 1 2 1 Piercing Weapon 1 | . . . . . . . . . . . . . . . . . . . 1 Special Melee Weapon . | . . . . . . . . . . . . . . . . . . . . Unidentified Prototypes 21 | . . 1 1 2 1 3 . . . 1 1 . 4 . . 2 . . 5 Parts Lost 49 | . 2 . 9 . 1 3 . . . . 1 5 1 . 8 4 . . 15 Power 7 | . 1 . . . . 2 . . . . . . . . 1 1 . . 2 Propulsion 9 | . . . 1 . . . . . . . . 1 . . 2 . . . 5 Utility 13 | . . . 1 . . 1 . . . . 1 3 . . 2 1 . . 4 Weapon 20 | . 1 . 7 . 1 . . . . . . 1 1 . 3 2 . . 4 Highest Loss Streak 10 | . 2 . 2 . 1 1 . . . . 1 4 1 . 7 2 . . 10 Average Slot Usage (%) 91 | . 99 85 95 100 95 89 92 92 92 92 91 98 93 93 92 86 88 87 86 Engine 3 | . 13 . 9 11 6 . . . . 4 6 6 . . . 5 5 5 4 Core 2 | . . . . . 2 5 7 7 7 2 . . . . . . . . . Treads 8 | . 8 16 5 . 1 7 7 7 7 7 6 6 12 13 12 10 11 11 10 Wheel 7 | . 18 11 16 22 16 11 7 7 7 7 6 11 1 . . . . . . Device 10 | . 8 . 11 4 10 1 14 15 15 14 12 13 4 . 10 9 11 10 10 Storage 25 | . 19 27 22 22 18 23 23 23 23 23 26 26 27 33 33 23 25 29 29 Processor 12 | . . . 5 11 9 13 14 15 15 15 13 8 6 6 13 17 17 17 17 Protection 4 | . . . 3 6 12 7 . . . . 5 8 19 19 1 4 2 . . Energy Gun 4 | . 1 . 12 4 5 . 8 9 7 7 1 5 11 1 . 7 . . . Energy Cannon 1 | . 12 . 5 12 8 . . . . . . . . . . 1 . 1 4 Ballistic Gun 4 | . 14 26 2 4 3 9 . . . . 6 . 1 10 12 1 6 3 . Slashing Weapon 2 | . . . . . . 2 2 4 7 6 4 4 . . . . 3 4 4 Naked Turns 1 | . . . . . . . . . . . . . . . . . . . 1 Heaviest Build 209 | 10 41 38 50 83 129 153 144 113 111 122 166 167 209 209 196 186 191 186 197 Greatest Support 160 | 20 40 40 24 24 24 28 28 28 28 28 28 28 110 110 110 160 160 160 160 Greatest Overweight (x) 13 | . 1 2 4 3 10 6 6 4 3 4 5 13 7 1 2 1 1 1 2 Average Overweight (x) 2 | . . 1 2 2 4 4 3 3 3 3 5 6 1 1 1 . . 1 1 Largest Inventory Capacity 44 | . 16 16 16 20 28 36 36 28 28 28 36 36 44 44 44 44 44 44 44 Average Capacity 31 | . 10 15 16 18 20 28 28 28 28 28 36 36 37 44 44 36 39 44 43 Most Carried 44 | . 8 9 16 20 22 32 31 28 28 28 36 36 42 43 44 39 39 42 44 Average Carried 30 | . 6 8 14 18 18 26 28 28 28 27 32 35 36 42 43 35 37 40 42 Final Capacity 44 | 6 16 16 16 20 28 36 28 28 28 28 36 36 44 44 44 36 44 44 4 Final Carried 43 | 6 8 9 16 20 22 32 28 28 28 28 35 33 42 43 41 36 39 42 4 Class Distribution -------------------- 43% | Hauler-Mutant 28% | Hauler-Assassin 10% | Mutant 8% | Hauler-Skirmisher 8% | Commander-Mutant Dominant Class ---------------- Mutant | -10/Materials Mutant | -10/Mines Mutant | -9/Materials Hauler-Mutant | -9/Storage Hauler-Mutant | -8/Materials Hauler-Mutant | -7/Factory Hauler-Mutant | -7/Lower Caves Hauler-Mutant | -7/Lower Caves Hauler-Assassin | -7/Data Miner Hauler-Assassin | -6/Proximity Caves Hauler-Assassin | -6/Factory Commander-Mutant | -6/Extension Hauler-Mutant | -6/Cetus Hauler-Mutant | -6/Archives Hauler-Skirmisher | -6/Hub_04(d) Hauler-Mutant | -5/Factory Hauler-Assassin | -5/Upper Caves Hauler-Assassin | -5/Upper Caves Hauler-Assassin | -5/Warlord Resources | -11 -10 -10 -9 -9 -8 -7 -7 -7 -7 -6 -6 -6 -6 -6 -6 -5 -5 -5 -5 ----------- Run | Scr Mat Min Mat Sto Mat Fac Low Low Dat Pro Fac Ext Cet Arc Hub Fac Upp Upp War Matter Collected 5097 | 200 152 . 638 178 294 690 659 22 . 118 42 508 150 50 298 220 302 324 252 Remotely . | . . . . . . . . . . . . . . . . . . . . Salvage Created 6302 | . 225 11 1004 197 653 1022 335 . . 211 82 467 356 . 718 306 76 127 512 Parts 327 | . 12 3 75 8 38 63 6 . . 8 5 24 7 . 40 10 1 9 18 Haulers Intercepted 1 | . . . . 1 . . . . . . . . . . . . . . . Recyclers Shooed 3 | . . . . . 2 . . . . . . . . . 1 . . . . Parts Field Recycled . | . . . . . . . . . . . . . . . . . . . . Retrieved Matter . | . . . . . . . . . . . . . . . . . . . . Parts Self-Destructed 123 | . . . . . . . 2 1 . 3 . . . . . . 1 29 87 Prevented 58 | . . . . . . . 3 2 . 8 . . . . . . . 1 44 Kills | -11 -10 -10 -9 -9 -8 -7 -7 -7 -7 -6 -6 -6 -6 -6 -6 -5 -5 -5 -5 ------- Run | Scr Mat Min Mat Sto Mat Fac Low Low Dat Pro Fac Ext Cet Arc Hub Fac Upp Upp War Combat Hostiles Destroyed 136 | . 5 3 30 5 19 22 3 . . 3 2 9 1 . 7 4 3 6 14 Melee 5 | . . . . . . 3 . . . . . 2 . . . . . . . Guns 53 | . 1 . 14 2 3 15 3 . . 1 2 3 . . 6 1 1 1 . Cannons 27 | . 4 . 10 3 6 1 . . . . . . . . . 2 . 1 . AOE 43 | . . 3 6 . 9 3 . . . . . 3 . . . 1 2 4 12 Classes Destroyed 17 | . 2 1 6 1 . 1 1 . . 1 . . 1 . . . . . 3 Worker 5 | . . . 2 . . 2 . . . . . . . . 1 . . . . Builder 6 | . . . 1 . 1 . . . . . . 1 . . 2 1 . . . Tunneler 1 | . . . 1 . . . . . . . . . . . . . . . . Hauler 1 | . . . . 1 . . . . . . . . . . . . . . . Recycler 1 | . . . . . . . . . . . . . . . 1 . . . . Operator 2 | . 1 . . . . . . . . . . 1 . . . . . . . Watcher 5 | . . . 1 . . 1 . . . . . 1 . . . 2 . . . Swarmer 41 | . . 3 13 2 5 3 . . . . . 3 . . . . 2 5 5 Saboteur 1 | . . . . . . . . . . . . . . . . . . . 1 Grunt 61 | . 5 . 13 3 10 11 3 . . 2 . 6 . . 3 1 . . 4 Brawler 2 | . . . . . . . . . . 1 . . . . . . . . 1 Duelist 1 | . . . 1 . . . . . . . . . . . . . . . . Protector 1 | . . . . . . . . . . . . . . . . . . . 1 Sentry 13 | . . . 3 . 4 2 . . . . . . . . 2 1 1 . . Hunter 1 | . . . . . . . . . . . . . . . . . . 1 . Programmer 11 | . . . . . . 6 . . . . 2 . . . 1 2 . . . Cetus Guard 1 | . . . . . . . . . . . . . 1 . . . . . . Enhanced Grunt 1 | . . . . . . . . . . . . . . . 1 . . . . Lightning 1 | . . . . . . . . . . . . . . . 1 . . . . Executioner 2 | . . . . . . . . . . . . . . . . . . . 2 Packrat 2 | . . . . . . . 2 . . . . . . . . . . . . Thug 3 | . . . . . . . . . . . . . 3 . . . . . . Savage 1 | . . . . . . . . . . . . . 1 . . . . . . Butcher 1 | . . . . . . . . . . . . . 1 . . . . . . Guerrilla 1 | . . . . . . . . . . . . . 1 . . . . . . Best Kill Streak 11 | . 3 3 5 2 7 7 3 . . 2 1 4 1 . 5 3 2 5 11 Combat Bots Only 11 | . 3 3 4 2 6 4 3 . . 2 1 3 1 . 3 2 2 5 11 Max Kills in Single Turn 6 | . 1 1 3 2 2 2 1 . . 1 1 3 5 . 5 2 2 4 6 Gunslinging . | . . . . . . . . . . . . . . . . . . . . Exploded 6 | . . 1 2 . 2 2 . . . . . 3 . . . 1 2 4 6 Melee 1 | . . . . . . 1 . . . . . 1 . . . . . . . Uniques/NPCs Destroyed . | . . . . . . . . . . . . . . . . . . . . Combat | -11 -10 -10 -9 -9 -8 -7 -7 -7 -7 -6 -6 -6 -6 -6 -6 -5 -5 -5 -5 -------- Run | Scr Mat Min Mat Sto Mat Fac Low Low Dat Pro Fac Ext Cet Arc Hub Fac Upp Upp War Damage Taken 16354 | . 449 71 1192 110 963 1673 326 . . 37 105 1258 436 123 2455 1297 221 206 5432 Core 2285 | . 60 12 247 27 108 194 36 . . 18 14 287 43 . 228 23 53 . 935 Absorbed by Shields 185 | . . . . . . . . . . . . 145 40 . . . . . . Core Remaining (%) 63 | 100 . 71 . 31 80 . . . . 64 . . . . 32 . . . . Volleys Fired 378 | . 19 3 69 17 46 67 10 . . 12 8 24 9 7 31 26 7 5 18 Largest 2 | . 2 1 2 2 2 2 2 . . 2 2 2 2 2 2 2 2 1 2 Hottest 305 | . 88 33 128 112 101 65 110 . . 110 58 135 120 90 65 305 63 88 121 Shots Fired 655 | . 38 3 122 30 80 121 17 1 . 15 16 41 18 14 59 43 12 5 20 Gun 491 | . 19 . 75 9 35 114 17 1 . 15 16 40 17 14 59 38 10 3 9 Cannon 142 | . 19 . 45 21 38 4 . . . . . . 1 . . 5 . 1 8 Launcher 22 | . . 3 2 . 7 3 . . . . . 1 . . . . 2 1 3 Special . | . . . . . . . . . . . . . . . . . . . . Kinetic 304 | . 19 . 27 1 16 113 . . . . 16 3 . 10 59 18 10 3 9 Thermal 111 | . 19 . 66 1 . 4 . . . . . 3 1 . . 17 . . . Explosive 21 | . . 3 2 . 7 3 . . . . . 1 . . . . 2 1 2 Electromagnetic 219 | . . . 27 28 57 1 17 1 . 15 . 34 17 4 . 8 . 1 9 Robot Hit Streak 41 | . 8 3 12 10 10 11 27 . . 29 14 20 8 12 9 28 40 41 13 Robot Miss Streak 6 | . 1 1 3 6 2 3 . . . 1 1 1 2 1 3 1 . 1 1 Penetration Max 1 | . . . . . 1 1 . . . . . . . . 1 . . . . Secondary Targets 3 | . . . . . . 2 . . . . . . . . 1 . . . . Max Gunslinging Chain 1 | . . . . . . 1 . . . . . . . . 1 . . . . Shots Hit Robots 498 | . 26 2 80 11 61 90 19 . . 14 9 54 14 13 38 36 12 3 16 Core Hits 288 | . 9 3 46 8 37 45 10 . . 6 4 22 16 4 23 12 5 6 32 Critical Hits 16 | . 1 . . . 1 1 . . . . . . . 1 8 2 . . 2 Critical Kills 3 | . . . . . . 1 . . . . . . . . 2 . . . . Critical Parts Destroyed 10 | . 1 . . . . . . . . . . . . . 6 1 . . 2 Melee Attacks 108 | . . . . . . 15 4 13 . 15 12 19 . . . . 7 15 8 Impact . | . . . . . . . . . . . . . . . . . . . . Slashing 108 | . . . . . . 15 4 13 . 15 12 19 . . . . 7 15 8 Piercing . | . . . . . . . . . . . . . . . . . . . . Sneak Attacks 6 | . . . . . . . 3 . . . . 3 . . . . . . . Combat Hostiles . | . . . . . . . . . . . . . . . . . . . . Follow-up Attacks . | . . . . . . . . . . . . . . . . . . . . Damage Inflicted 18778 | . 456 305 1842 263 2294 2659 650 . . 305 257 1866 1005 298 1593 1352 533 524 2576 Guns 7967 | . 146 . 618 67 538 1928 338 . . 252 257 752 277 298 1068 984 227 48 169 Cannons 2271 | . 310 . 563 196 642 110 . . . . . . 28 . . 125 . 41 256 Explosions 7029 | . . 305 661 . 1114 395 . . . 53 . 176 700 . 505 243 306 435 2136 Melee 1476 | . . . . . . 226 312 . . . . 938 . . . . . . . Ramming 35 | . . . . . . . . . . . . . . . 20 . . . 15 Kinetic 5022 | . 146 . 208 12 254 1894 . . . . 257 69 . 230 1068 440 227 48 169 Thermal 3516 | . 310 . 974 18 198 110 . . . 53 . 78 728 . . 497 . . 550 Explosive 4510 | . . 305 408 . 916 395 . . . . . 176 . . . 243 306 435 1326 Electromagnetic 4219 | . . . 252 233 926 34 338 . . 252 . 605 277 68 505 172 . 41 516 Impact . | . . . . . . . . . . . . . . . . . . . . Slashing 1476 | . . . . . . 226 312 . . . . 938 . . . . . . . Piercing . | . . . . . . . . . . . . . . . . . . . . Highest Corruption 26 | . . . 1 1 . 8 8 8 . . . 3 . . 26 5 5 . 3 Average Corruption 4 | . . . 1 1 . 5 8 4 . . . 2 . . 9 3 2 . 2 Corruption Purged 17 | . . . . . . . . 8 . . . 3 . . . 1 5 . . Effects 150 | . . . 1 3 . 50 37 32 . . . 3 . . 8 7 7 . 2 Message Errors 43 | . . . 1 . . 18 11 9 . . . 2 . . . 2 . . . Matter Fused 30 | . . . . . . 10 11 6 . . . . . . . 2 1 . . Heat Flow Errors 15 | . . . . . . 2 3 4 . . . . . . 1 1 4 . . Energy Discharges 21 | . . . . 1 . 4 5 8 . . . . . . 1 . . . 2 Parts Rejected 1 | . . . . . . . . . . . . . . . . 1 . . . Data Loss (minor) 13 | . . . . . . 3 3 4 . . . 1 . . . . 2 . . Data Loss (major) 5 | . . . . . . 2 3 . . . . . . . . . . . . Misfires 3 | . . . . . . 1 1 1 . . . . . . . . . . . Targeting Errors 14 | . . . . 2 . 7 . . . . . . . . 4 1 . . . Weapon Failures 5 | . . . . . . 3 . . . . . . . . 2 . . . . Overload Shots 3 | . . . . . . . . . . . . . . . . 3 . . . Overflow Damage 740 | . . 30 39 . 71 31 101 . . 14 . 167 30 . 10 30 43 20 154 Projectiles 3 | . . . . . 3 . . . . . . . . . . . . . . Explosions 441 | . . 30 39 . 68 3 . . . 14 . . 30 . 10 30 43 20 154 Melee 296 | . . . . . . 28 101 . . . . 167 . . . . . . . Knockbacks . | . . . . . . . . . . . . . . . . . . . . Impact . | . . . . . . . . . . . . . . . . . . . . Kinetic . | . . . . . . . . . . . . . . . . . . . . Secondary . | . . . . . . . . . . . . . . . . . . . . Self-Inflicted Damage 719 | . . 21 163 . 107 8 . . . . . . 82 . 102 40 . . 196 Shots 18 | . . 2 5 . 3 1 . . . . . . 1 . 1 1 . . 4 Rammed 3 | . . . . . . . . . . . . . . . 2 . . . 1 Targets Rammed 3 | . . . . . . . . . . . . . . . 2 . . . 1 Kicked . | . . . . . . . . . . . . . . . . . . . . Crushed . | . . . . . . . . . . . . . . . . . . . . Highest Temperature 653 | . 279 . 306 168 441 396 312 231 . 77 6 653 181 42 212 568 172 22 112 Average Temperature 98 | . 131 . 73 64 82 59 160 90 . 37 3 215 85 19 85 178 73 16 36 Received Heat Transfer 2846 | . 174 . 180 12 387 507 180 . . 18 . 379 49 . 42 351 18 27 522 Effects 20 | . . . 1 . 1 3 3 . . . . 8 . . . 4 . . . Shutdowns 5 | . . . . . 1 . . . . . . 2 . . . 2 . . . Energy Bleed 2 | . . . 1 . . . . . . . . . . . . 1 . . . Interference 7 | . . . . . . 3 3 . . . . 1 . . . . . . . Matter Decay 1 | . . . . . . . . . . . . . . . . 1 . . . Short Circuit 1 | . . . . . . . . . . . . 1 . . . . . . . Damage (major) 3 | . . . . . . . . . . . . 3 . . . . . . . Damage (core) 1 | . . . . . . . . . . . . 1 . . . . . . . Siege Activations . | . . . . . . . . . . . . . . . . . . . . Robots Corrupted 9 | . . . . . 1 . . . . 2 . 1 1 . 1 1 . . 2 Combat Hostiles 8 | . . . . . 1 . . . . 2 . 1 1 . 1 . . . 2 Parts Fried 22 | . . . . 1 6 . 3 . . . . 1 . . 5 2 . . 4 Impact Corruptions . | . . . . . . . . . . . . . . . . . . . . Robots Melted . | . . . . . . . . . . . . . . . . . . . . Combat Hostiles . | . . . . . . . . . . . . . . . . . . . . Parts Melted 6 | . 1 . 3 1 . . . . . . . 1 . . . . . . . Heat Transferred 4506 | . 555 . 1710 37 250 148 . . . 50 . 111 462 . . 483 . . 700 Parts Sabotaged 1 | . . . . . . . . . . . . . . . . . . . 1 Parts Stolen . | . . . . . . . . . . . . . . . . . . . . Parts Stripped . | . . . . . . . . . . . . . . . . . . . . Power Chain Reactions 12 | . . . 3 . 3 . . . . 1 . . 2 . 1 . . . 2 Missiles Intercepted . | . . . . . . . . . . . . . . . . . . . . Alert | -11 -10 -10 -9 -9 -8 -7 -7 -7 -7 -6 -6 -6 -6 -6 -6 -5 -5 -5 -5 ------- Run | Scr Mat Min Mat Sto Mat Fac Low Low Dat Pro Fac Ext Cet Arc Hub Fac Upp Upp War Peak Influence 603 | . 196 153 501 487 603 263 . . . . 77 411 465 307 332 266 . . . Average Influence 184 | . 64 152 285 297 373 140 . . . . 20 168 315 258 117 173 . . . Maximum Alert Level 2 | . . . 2 2 2 1 . . . . . 2 2 1 1 1 . . . Low Security (%) 56 | . 100 100 21 14 . 76 . . . . 100 56 11 26 84 40 . . . Level 1 35 | . . . 69 49 57 23 . . . . . 35 79 73 15 59 . . . Level 2 7 | . . . 8 35 42 . . . . . . 7 9 . . . . . . Level 3 . | . . . . . . . . . . . . . . . . . . . . Level 4 . | . . . . . . . . . . . . . . . . . . . . Level 5 . | . . . . . . . . . . . . . . . . . . . . High Security . | . . . . . . . . . . . . . . . . . . . . Max Security . | . . . . . . . . . . . . . . . . . . . . Squads Dispatched 38 | . 3 . 3 5 5 8 . . . . 3 1 . . 7 2 . 1 . Investigation 14 | . . . 1 2 4 3 . . . . 2 . . . 2 . . . . Extermination 8 | . . . . . . 4 . . . . 1 . . . 2 1 . . . Reinforcement 15 | . 3 . 2 3 1 1 . . . . . 1 . . 3 1 . . . Assault 1 | . . . . . . . . . . . . . . . . . . 1 . Garrison . | . . . . . . . . . . . . . . . . . . . . Intercept . | . . . . . . . . . . . . . . . . . . . . Construction Impeded 2 | . . . . . . . . . . . . . . . 1 1 . . . Haulers Reinforced . | . . . . . . . . . . . . . . . . . . . . Stealth | -11 -10 -10 -9 -9 -8 -7 -7 -7 -7 -6 -6 -6 -6 -6 -6 -5 -5 -5 -5 --------- Run | Scr Mat Min Mat Sto Mat Fac Low Low Dat Pro Fac Ext Cet Arc Hub Fac Upp Upp War Distress Signals 17 | . 1 . 2 4 . 3 . . . . . 1 2 . 2 . . . 2 Communications Jammed . | . . . . . . . . . . . . . . . . . . . . Distress Signals . | . . . . . . . . . . . . . . . . . . . . Times Spotted 298 | . 12 3 37 12 34 34 4 . . 5 2 37 13 4 27 9 3 10 52 Peak Tracking Total 32 | . 6 3 5 3 6 5 4 . . 4 1 6 5 2 9 4 3 9 32 Tactical Retreats 13 | . 1 . . . 2 1 1 . . 2 . 1 . . 1 1 . . 3 Traps | -11 -10 -10 -9 -9 -8 -7 -7 -7 -7 -6 -6 -6 -6 -6 -6 -5 -5 -5 -5 ------- Run | Scr Mat Min Mat Sto Mat Fac Low Low Dat Pro Fac Ext Cet Arc Hub Fac Upp Upp War Traps Triggered 18 | . 1 . 2 1 2 3 . . . . . 6 . . 2 1 . . . Indirectly . | . . . . . . . . . . . . . . . . . . . . Trap Hack Attempts . | . . . . . . . . . . . . . . . . . . . . Triggered . | . . . . . . . . . . . . . . . . . . . . Disarmed . | . . . . . . . . . . . . . . . . . . . . Reprogrammed . | . . . . . . . . . . . . . . . . . . . . Reused . | . . . . . . . . . . . . . . . . . . . . Traps Extracted . | . . . . . . . . . . . . . . . . . . . . Installed . | . . . . . . . . . . . . . . . . . . . . Triggered 24 | . . . . . . . . 2 . . . . . . . . . 2 20 Machines | -11 -10 -10 -9 -9 -8 -7 -7 -7 -7 -6 -6 -6 -6 -6 -6 -5 -5 -5 -5 ---------- Run | Scr Mat Min Mat Sto Mat Fac Low Low Dat Pro Fac Ext Cet Arc Hub Fac Upp Upp War Machines Disabled 18 | . . . 1 2 2 3 . . . . . . . 3 3 4 . . . Max in Single Turn 3 | . . . 1 1 1 1 . . . . . . . 1 3 3 . . . Network Hub 1 | . . . . . . . . . . . . . . . 1 . . . . Machines Sabotaged . | . . . . . . . . . . . . . . . . . . . . Garrisons Compromised . | . . . . . . . . . . . . . . . . . . . . Overloaded Fab Kills . | . . . . . . . . . . . . . . . . . . . . Fab Network Shutdowns . | . . . . . . . . . . . . . . . . . . . . Hacking | -11 -10 -10 -9 -9 -8 -7 -7 -7 -7 -6 -6 -6 -6 -6 -6 -5 -5 -5 -5 --------- Run | Scr Mat Min Mat Sto Mat Fac Low Low Dat Pro Fac Ext Cet Arc Hub Fac Upp Upp War Machines Accessed 59 | . 3 . 7 7 2 12 1 . 4 . 2 5 3 . 4 3 1 . 5 Terminals 44 | . 3 . 5 7 2 11 . . . . 1 5 3 . 4 3 . . . Fabricators 2 | . . . . . . 1 . . . . 1 . . . . . . . . Repair Stations 1 | . . . 1 . . . . . . . . . . . . . . . . Recycling Units . | . . . . . . . . . . . . . . . . . . . . Scanalyzers 1 | . . . 1 . . . . . . . . . . . . . . . . Garrison Access . | . . . . . . . . . . . . . . . . . . . . Total Hacks 176 | . 13 . 20 16 8 33 1 . 27 . 6 17 7 . 9 9 1 . 9 Successful 98 | . 7 . 7 6 4 12 1 . 27 . 3 8 4 . 5 4 1 . 9 Failed 78 | . 6 . 13 10 4 21 . . . . 3 9 3 . 4 5 . . . Catastrophic 18 | . . . 2 4 2 7 . . . . . 2 1 . . . . . . Database Lockouts . | . . . . . . . . . . . . . . . . . . . . Manual 98 | . 10 . 15 7 6 17 . . . . 3 17 7 . 6 9 . . 1 Terminals 129 | . 13 . 16 16 8 31 . . . . 3 17 7 . 9 9 . . . Fabricators 5 | . . . . . . 2 . . . . 3 . . . . . . . . Repair Stations 2 | . . . 2 . . . . . . . . . . . . . . . . Recycling Units . | . . . . . . . . . . . . . . . . . . . . Scanalyzers 2 | . . . 2 . . . . . . . . . . . . . . . . Garrison Access . | . . . . . . . . . . . . . . . . . . . . Terminal Hacks 71 | . 4 . 2 3 2 9 1 . 27 . 1 5 2 . 3 2 1 . 9 Record 19 | . . . . . . . 1 . 11 . . . . . . . . . 7 Part Schematic 7 | . . . . . . . . . 7 . . . . . . . . . . Robot Schematic 6 | . . . . . . . . . 6 . . . . . . . . . . Robot Analysis 1 | . . . . . . 1 . . . . . . . . . . . . . Prototype ID Bank 8 | . 1 . . . . 4 . . 3 . . . . . . . . . . Open Door 5 | . . . . 1 . . . . . . . . 1 . . . 1 . 2 Level Access Points 1 | . . . . . 1 . . . . . . . . . . . . . . Branch Access Points 2 | . 1 . . . . . . . . . . . . . . 1 . . . Terminal Index 5 | . 1 . 1 . . 1 . . . . . 1 . . . 1 . . . Fabricator Index 1 | . . . . . . 1 . . . . . . . . . . . . . Alert Level 1 | . . . . . . . . . . . . . . . 1 . . . . Unreport Threat 11 | . . . . 2 . 2 . . . . 1 3 1 . 2 . . . . Locate Traps 1 | . 1 . . . . . . . . . . . . . . . . . . Recall Reinforcements 1 | . . . . . . . . . . . . 1 . . . . . . . Hauler Manifests 2 | . . . 1 . 1 . . . . . . . . . . . . . . Fabricator Hacks 4 | . . . . . . 2 . . . . 2 . . . . . . . . Load Schematic 2 | . . . . . . 1 . . . . 1 . . . . . . . . Build 2 | . . . . . . 1 . . . . 1 . . . . . . . . Repair Station Hacks . | . . . . . . . . . . . . . . . . . . . . Recycling Unit Hacks . | . . . . . . . . . . . . . . . . . . . . Scanalyzer 2 | . . . 2 . . . . . . . . . . . . . . . . Insert Component 1 | . . . 1 . . . . . . . . . . . . . . . . Analyze 1 | . . . 1 . . . . . . . . . . . . . . . . Garrison Access Hacks . | . . . . . . . . . . . . . . . . . . . . Unauthorized Hacks 21 | . 3 . 3 3 2 1 . . . . . 3 2 . 2 2 . . . Terminals 21 | . 3 . 3 3 2 1 . . . . . 3 2 . 2 2 . . . Track 9 | . 2 . 2 2 1 . . . . . . . . . 2 . . . . Assimilate 1 | . . . . . . . . . . . . 1 . . . . . . . Botnet 11 | . 1 . 1 1 1 1 . . . . . 2 2 . . 2 . . . Fabricators . | . . . . . . . . . . . . . . . . . . . . Repair Stations . | . . . . . . . . . . . . . . . . . . . . Recycling Units . | . . . . . . . . . . . . . . . . . . . . Scanalyzers . | . . . . . . . . . . . . . . . . . . . . Garrison Access . | . . . . . . . . . . . . . . . . . . . . Data Cores Recovered 1 | . . . . . . . . . . . . . . . 1 . . . . Used . | . . . . . . . . . . . . . . . . . . . . Hacking Detections 42 | . 3 . 6 6 2 12 . . . . 2 4 1 . 4 2 . . . Full Trace Events 10 | . . . 1 2 1 3 . . . . 2 . . . 1 . . . . Feedback Events . | . . . . . . . . . . . . . . . . . . . . Feedback Blocked . | . . . . . . . . . . . . . . . . . . . . Robot Schematics Acquired 6 | . . . . . . . . . 6 . . . . . . . . . . Robots Built . | . . . . . . . . . . . . . . . . . . . . Matter . | . . . . . . . . . . . . . . . . . . . . Time . | . . . . . . . . . . . . . . . . . . . . Total Robot Build Rating . | . . . . . . . . . . . . . . . . . . . . Part Schematics Acquired 8 | . . . 1 . . . . . 7 . . . . . . . . . . Parts Built 2 | . . . . . . 1 . . . . 1 . . . . . . . . Matter 570 | . . . . . . 285 . . . . 285 . . . . . . . . Time 152 | . . . . . . 76 . . . . 76 . . . . . . . . Total Part Build Rating 10 | . . . . . . 5 . . . . 5 . . . . . . . . Parts Repaired . | . . . . . . . . . . . . . . . . . . . . Time . | . . . . . . . . . . . . . . . . . . . . Parts Recycled . | . . . . . . . . . . . . . . . . . . . . Recycled Matter . | . . . . . . . . . . . . . . . . . . . . Retrieved Matter . | . . . . . . . . . . . . . . . . . . . . Retrieved Components . | . . . . . . . . . . . . . . . . . . . . Parts Scanalyzed 1 | . . . 1 . . . . . . . . . . . . . . . . Part Schematics Acquired 1 | . . . 1 . . . . . . . . . . . . . . . . Parts Damaged . | . . . . . . . . . . . . . . . . . . . . Bothacking | -11 -10 -10 -9 -9 -8 -7 -7 -7 -7 -6 -6 -6 -6 -6 -6 -5 -5 -5 -5 ------------ Run | Scr Mat Min Mat Sto Mat Fac Low Low Dat Pro Fac Ext Cet Arc Hub Fac Upp Upp War Used RIF Installer . | . . . . . . . . . . . . . . . . . . . . Robots Hacked . | . . . . . . . . . . . . . . . . . . . . Non-combat . | . . . . . . . . . . . . . . . . . . . . Combat . | . . . . . . . . . . . . . . . . . . . . Robot Hacks Applied . | . . . . . . . . . . . . . . . . . . . . Relay Couplers Released . | . . . . . . . . . . . . . . . . . . . . Robots Rewired 33 | . . . . . . . . . . . . 33 . . . . . . . Allies Hacked . | . . . . . . . . . . . . . . . . . . . . Hacks Repelled . | . . . . . . . . . . . . . . . . . . . . Allies | -11 -10 -10 -9 -9 -8 -7 -7 -7 -7 -6 -6 -6 -6 -6 -6 -5 -5 -5 -5 -------- Run | Scr Mat Min Mat Sto Mat Fac Low Low Dat Pro Fac Ext Cet Arc Hub Fac Upp Upp War Total Allies 53 | . . . . 10 . . . . . 1 . 37 5 . . . . . . Largest Group 31 | . . . . 10 . . . . . 1 . 31 18 6 3 . . . . Highest-Rated Group 926 | . . . . 88 . . . . . 94 . 926 716 488 282 . . . . Highest-Rated Ally 156 | . . . . 16 . . . . . 94 . 156 156 156 94 . . . . Total Orders . | . . . . . . . . . . . . . . . . . . . . Ally Attacks 430 | . . . . 98 . . . . . 7 . 144 90 33 58 . . . . Total Damage 10415 | . . . . 965 . . . . . 190 . 3217 2778 1148 2117 . . . . Kills 80 | . . . . 17 . . . . . 1 . 25 18 5 14 . . . . Allies Corrupted . | . . . . . . . . . . . . . . . . . . . . Allies Melted 3 | . . . . . . . . . . 1 . . . . . . . . 2 Intel | -11 -10 -10 -9 -9 -8 -7 -7 -7 -7 -6 -6 -6 -6 -6 -6 -5 -5 -5 -5 ------- Run | Scr Mat Min Mat Sto Mat Fac Low Low Dat Pro Fac Ext Cet Arc Hub Fac Upp Upp War Robot Analysis Total 1 | . . . . . . 1 . . . . . . . . . . . . . Derelict Logs Recovered 6 | . . 2 . . . . 1 1 . 1 . . . . . . 1 . . Drone Launches . | . . . . . . . . . . . . . . . . . . . . Drone Recoveries . | . . . . . . . . . . . . . . . . . . . . Exploration | -11 -10 -10 -9 -9 -8 -7 -7 -7 -7 -6 -6 -6 -6 -6 -6 -5 -5 -5 -5 ------------- Run | Scr Mat Min Mat Sto Mat Fac Low Low Dat Pro Fac Ext Cet Arc Hub Fac Upp Upp War Turns Passed 17185 | . 387 291 1102 367 873 2340 1114 1410 107 830 737 1947 483 130 1109 596 857 1150 1355 Spaces Moved 8539 | 1 287 242 646 231 389 1115 631 570 83 412 314 862 234 51 535 276 463 515 682 Core 3 | . . . . . . . . . . . . . . . . . . . 3 Treads 3085 | . 36 19 37 . . 257 8 . . . . . 209 51 535 276 463 515 679 Legs 17 | 1 16 . . . . . . . . . . . . . . . . . . Wheels 5434 | . 235 223 609 231 389 858 623 570 83 412 314 862 25 . . . . . . Hover . | . . . . . . . . . . . . . . . . . . . . Flight . | . . . . . . . . . . . . . . . . . . . . Fastest Speed 50 | 120 90 110 100 100 120 140 130 130 130 130 150 150 155 180 180 160 160 180 50 Average Speed 151 | 120 103 113 115 111 132 164 138 135 130 137 150 153 177 180 180 166 167 180 179 Slowest Speed 265 | 120 180 160 200 120 190 265 265 140 130 140 150 220 180 180 200 180 180 180 200 Overloaded Moves . | . . . . . . . . . . . . . . . . . . . . Propulsion Burnouts . | . . . . . . . . . . . . . . . . . . . . Robots Hopped . | . . . . . . . . . . . . . . . . . . . . Cave-ins Triggered . | . . . . . . . . . . . . . . . . . . . . Exploration Rate (%) 54 | 1 44 59 55 51 33 39 86 77 70 59 8 98 80 73 48 10 56 69 75 Regions Visited 19 Branch Regions 13 Pre-discovered Areas 2 | . . . . . . . 1 . 1 . . . . . . . . . . Known Exits Taken 16 | . 1 1 1 1 1 1 1 1 1 1 1 . . 1 1 1 1 1 . Unknown Exits Taken 3 | 1 . . . . . . . . . . . 1 1 . . . . . . Scrap Searched 8 | . . . . . . . 3 3 . . . . . . . . 1 1 . Spaces Dug 73 | . . . . . . 6 1 12 . 15 10 . . . . 2 7 15 5 Terrain Destroyed 546 | . . 37 28 . 41 24 1 12 . 26 11 12 28 2 177 67 9 35 36 Melee 71 | . . . . . . 6 1 12 . 15 10 . . . . . 7 15 5 Projectile 26 | . . . . . . 2 . . . . 1 . . 2 15 3 . . 3 AOE 449 | . . 37 28 . 41 16 . . . 11 . 12 28 . 162 64 2 20 28 Actions | -11 -10 -10 -9 -9 -8 -7 -7 -7 -7 -6 -6 -6 -6 -6 -6 -5 -5 -5 -5 --------- Run | Scr Mat Min Mat Sto Mat Fac Low Low Dat Pro Fac Ext Cet Arc Hub Fac Upp Upp War Total 12002 | . 339 252 884 314 671 1479 847 1185 82 638 542 1416 289 75 615 370 516 711 777 Wait 2036 | . 6 1 92 34 185 202 182 601 . 186 184 71 11 15 30 19 24 165 28 Move 8520 | . 286 241 645 230 388 1114 630 569 82 411 313 861 233 50 534 275 462 514 682 Hop . | . . . . . . . . . . . . . . . . . . . . Pick Up 135 | . 7 2 25 8 11 21 3 . . 2 5 16 9 1 4 8 4 3 6 Fast Attach 65 | . 5 . 10 4 6 9 . . . 2 4 5 6 . 2 6 . . 6 Attach 63 | . . 1 9 . 3 7 1 . . . 3 9 2 . 5 11 . 3 9 Detach 38 | . 1 . 2 2 1 8 . . . . 4 4 6 . . 4 . 3 3 Swap 152 | . 5 4 13 8 13 17 11 2 . 6 9 22 2 2 6 11 11 3 7 Drop 136 | . 10 . 19 11 18 17 6 . . 4 . 19 11 . 1 10 1 . 9 Fire 378 | . 19 3 69 17 46 67 10 . . 12 8 24 9 7 31 26 7 5 18 Melee 108 | . . . . . . 15 4 13 . 15 12 19 . . . . 7 15 8 Ram . | . . . . . . . . . . . . . . . . . . . . Kick . | . . . . . . . . . . . . . . . . . . . . Crush 3 | . . . . . . . . . . . . . . . 2 . . . 1 Escape Stasis 50 | . . . . . . 2 . . . . . 48 . . . . . . . Rewire 318 | . . . . . . . . . . . . 318 . . . . . . . Trap . | . . . . . . . . . . . . . . . . . . . . Miscellaneous . | . . . . . . . . . . . . . . . . . . . . Route ------- -11/Scrapyard -10/Materials (discovered 3 exits: *Mat / *Min x2) -10/Mines -9/Materials (discovered 3 exits: *Min x2 / *Sto) -9/Storage -8/Materials (discovered 3 exits: *Fac x3) -7/Factory (discovered 2 exits: *Fac / *Low) -7/Lower Caves -7/Lower Caves (discovered 2 exits: *Fac / *Dat) -7/Data Miner -6/Proximity Caves -6/Factory -6/Extension (discovered 3 exits: *Fac x2 / *Cet) -6/Cetus (discovered 2 exits: *Fac / [*Arc]) -6/Archives -6/Hub_04(d) (discovered 2 exits: *Fac x2) -5/Factory (discovered 2 exits: *Upp x2) -5/Upper Caves -5/Upper Caves (discovered 2 exits: *Fac / *War) -5/Warlord History --------- Turn | Location | Event 1 | -11/Scrapyard | Discovered new exit (range 0) 1 | -11/Scrapyard | Entered Materials 71 | -10/Materials | Identified exit to Mines 208 | -10/Materials | Discovered new exit (range 14) 332 | -10/Materials | Build established: Mutant 388 | -10/Materials | Entered Mines 389 | -10/Mines | Met a Derelict bent on vengeance 422 | -10/Mines | Found a damaged Exp. Sensor Array with a note attached 428 | -10/Mines | Found Prototype Device 429 | -10/Mines | Identified Exp. Sensor Array 581 | -10/Mines | Identified exit to Materials 590 | -10/Mines | Learned location of 1 exit from Materials 679 | -10/Mines | Entered Materials 679 | -9/Materials | Evolved 2 slots: Utility x2 680 | -9/Materials | Identified exit to Storage 1010 | -9/Materials | Discovered new exit (range 3) 1342 | -9/Materials | Identified exit to Mines 1442 | -9/Materials | Discovered exit to Mines (range 11) 1663 | -9/Materials | Core integrity fell below 50% 1781 | -9/Materials | Entered Storage 1874 | -9/Storage | Assisted by bots powering up and referring to "LRC-V3" 2118 | -9/Storage | Discovered new exit (range 5) 2147 | -9/Storage | Identified exit to Materials 2148 | -9/Storage | Entered Materials 2148 | -8/Materials | Evolved 2 slots: Utility x2 2189 | -8/Materials | Build established: Hauler-Mutant 2606 | -8/Materials | Identified exit to Factory 3021 | -8/Materials | Entered Factory 3021 | -7/Factory | Evolved 2 slots: Propulsion x1, Utility x1 4228 | -7/Factory | Fabricated Exp. Sensor Array (x1) 4730 | -7/Factory | Discovered new exit (range 4) 4733 | -7/Factory | Identified exit to Factory 5307 | -7/Factory | Discovered new exit (range 6) 5314 | -7/Factory | Identified exit to Lower Caves 5361 | -7/Factory | Entered Lower Caves 5685 | -7/Lower Caves | Build established: Hauler-Assassin 5912 | -7/Lower Caves | Learned location of Zion (-6) 6172 | -7/Lower Caves | Encountered a Warlord checkpoint 6315 | -7/Lower Caves | Discovered new exit (range 14) 6399 | -7/Lower Caves | Build established: Hauler-Mutant 6473 | -7/Lower Caves | Identified exit to Lower Caves 6475 | -7/Lower Caves | Entered another Lower Caves area 6476 | -7/Lower Caves | Encountered a Warlord checkpoint 6577 | -7/Lower Caves | Discovered exit to Factory (range 10) 7295 | -7/Lower Caves | Discovered new exit (range 3) 7299 | -7/Lower Caves | Identified exit to Data Miner 7885 | -7/Lower Caves | Entered Data Miner 7885 | -7/Data Miner | Discovered new exit (range 6) 7910 | -7/Data Miner | Met Data Miner 7945 | -7/Data Miner | Learned location of Section 7 (-2) 7945 | -7/Data Miner | Acquired the access code to Warlord's prototype stash 7963 | -7/Data Miner | Received God Mode back door access code from Data Miner 7991 | -7/Data Miner | Identified exit to Proximity Caves 7992 | -7/Data Miner | Entered Proximity Caves 8101 | -6/Proximity Caves | Escorted by Enhanced Grunt 8609 | -6/Proximity Caves | Learned Factory emergency access door positions 8635 | -6/Proximity Caves | Build established: Hauler-Assassin 8815 | -6/Proximity Caves | Discovered exit to Factory (range 8) 8822 | -6/Proximity Caves | Entered Factory 8822 | -6/Factory | Evolved 2 slots: Utility x2 8945 | -6/Factory | Fabricated Lgt. Regenerative Plating (x1) 9221 | -6/Factory | Found Prototype Processor 9221 | -6/Factory | Identified Exp. Signal Interpreter 9268 | -6/Factory | Discovered new exit (range 12) 9558 | -6/Factory | Identified exit to Extension 9559 | -6/Factory | Entered Extension 9614 | -6/Extension | Rescued a captive Derelict 10106 | -6/Extension | Rescued a captive Derelict 10143 | -6/Extension | Rescued a captive Derelict 10243 | -6/Extension | Build established: Hauler-Mutant 10357 | -6/Extension | Rescued A7 10373 | -6/Extension | Spotted B-75 Beast 10379 | -6/Extension | Spotted B-75 Beast 10396 | -6/Extension | Allies destroyed B-75 Beast 10405 | -6/Extension | Allies destroyed B-75 Beast 10434 | -6/Extension | Lost 4 parts (1n2u1w) 10552 | -6/Extension | Build established: Commander-Mutant 11289 | -6/Extension | Discovered new exit (range 14) 11440 | -6/Extension | Discovered new exit (range 15) 11441 | -6/Extension | Discovered new exit (range 15) 11506 | -6/Extension | Entered Cetus 11506 | -6/Cetus | Accompanied by 18 allies 11511 | -6/Cetus | Acquired a Cetus Manufacturing Module code from A7 11525 | -6/Cetus | Spotted Cetus Guard 11525 | -6/Cetus | Spotted Cetus Guard 11527 | -6/Cetus | Spotted Cetus Guard 11530 | -6/Cetus | Spotted Cetus Guard 11541 | -6/Cetus | Allies destroyed Cetus Guard 11543 | -6/Cetus | Allies destroyed Cetus Guard 11545 | -6/Cetus | Allies destroyed Cetus Guard 11551 | -6/Cetus | Destroyed Cetus Guard 11652 | -6/Cetus | Started Cetus Manufacturing Module 11664 | -6/Cetus | Escorted A7 to Cetus Mainframe 11677 | -6/Cetus | Manufactured an Enhanced Grunt 11702 | -6/Cetus | Manufactured an Enhanced Grunt 11727 | -6/Cetus | Manufactured an Enhanced Grunt 11752 | -6/Cetus | Manufactured an Enhanced Grunt 11777 | -6/Cetus | Manufactured an Enhanced Grunt 11805 | -6/Cetus | Discovered new exit (range 15) 11839 | -6/Cetus | Spotted Cetus Guard 11839 | -6/Cetus | Spotted Cetus Guard 11842 | -6/Cetus | Spotted Cetus Guard 11842 | -6/Cetus | Spotted Cetus Guard 11843 | -6/Cetus | Allies destroyed Cetus Guard 11853 | -6/Cetus | Allies destroyed Cetus Guard 11854 | -6/Cetus | Discovered new exit (range 16) 11860 | -6/Cetus | Allies destroyed Cetus Guard 11863 | -6/Cetus | Allies destroyed Cetus Guard 11877 | -6/Cetus | Met Revision 17 11989 | -6/Cetus | Entered Archives 11989 | -6/Archives | Accompanied by 6 allies 11994 | -6/Archives | Received a hacking code to weaken MAIN.C 12067 | -6/Archives | Discovered new exit (range 16) 12102 | -6/Archives | Identified exit to Hub_04(d) 12119 | -6/Archives | Entered Hub_04(d) 12119 | -6/Hub_04(d) | Accompanied by 3 allies 12389 | -6/Hub_04(d) | Build established: Hauler-Skirmisher 12601 | -6/Hub_04(d) | Discovered new exit (range 4) 12652 | -6/Hub_04(d) | Spotted B-75 Beast 12838 | -6/Hub_04(d) | Discovered new exit (range 14) 13051 | -6/Hub_04(d) | Identified exit to Factory 13110 | -6/Hub_04(d) | Network Hub disabled 13137 | -6/Hub_04(d) | Spotted Lightning 13146 | -6/Hub_04(d) | Spotted Lightning 13179 | -6/Hub_04(d) | Spotted Lightning 13181 | -6/Hub_04(d) | Spotted Lightning 13183 | -6/Hub_04(d) | System corruption reached 10% 13191 | -6/Hub_04(d) | Spotted Lightning 13203 | -6/Hub_04(d) | Destroyed Lightning 13204 | -6/Hub_04(d) | Spotted Lightning 13207 | -6/Hub_04(d) | Found Prototype Processor 13209 | -6/Hub_04(d) | Core integrity fell below 50% 13217 | -6/Hub_04(d) | Found Prototype Energy Cannon 13228 | -6/Hub_04(d) | Entered Factory 13228 | -5/Factory | Evolved 2 slots: Propulsion x1, Utility x1 13228 | -5/Factory | Identified EMDS 13229 | -5/Factory | Identified exit to Upper Caves 13229 | -5/Factory | Identified Exp. Targeting Computer 13247 | -5/Factory | Lost 7 parts (2n2u3w) 13824 | -5/Factory | Entered Upper Caves 13825 | -5/Upper Caves | Encountered a Warlord checkpoint 14201 | -5/Upper Caves | Build established: Hauler-Assassin 14442 | -5/Upper Caves | Discovered new exit (range 20) 14475 | -5/Upper Caves | Attracted the attention of an 0b10 checkpoint 14546 | -5/Upper Caves | Identified exit to Upper Caves 14681 | -5/Upper Caves | Entered another Upper Caves area 14824 | -5/Upper Caves | Discovered new exit (range 16) 14876 | -5/Upper Caves | Identified exit to Factory 15439 | -5/Upper Caves | Encountered a Warlord checkpoint 15766 | -5/Upper Caves | Discovered new exit (range 20) 15826 | -5/Upper Caves | Attracted the attention of an 0b10 outpost 15829 | -5/Upper Caves | Identified exit to Warlord 15831 | -5/Upper Caves | Entered Warlord 15891 | -5/Warlord | System corruption cleaned by Quarantine Array 16050 | -5/Warlord | Visited the Vortex Lab 16062 | -5/Warlord | Warlord's base attacked by MAIN.C 16070 | -5/Warlord | Found Prototype Piercing Weapon 16070 | -5/Warlord | Identified Vortex Lance 16073 | -5/Warlord | Found Vortex Lance 16273 | -5/Warlord | Met Warlord 16291 | -5/Warlord | Opened Warlord's prototype stash 16297 | -5/Warlord | Found Prototype Reactor 16308 | -5/Warlord | Found Prototype Processor 16308 | -5/Warlord | Identified Spectral Analyzer 16327 | -5/Warlord | Found Prototype Device 16327 | -5/Warlord | Identified Exp. Phase Shifter 16412 | -5/Warlord | Warlord forces counterattacked 16466 | -5/Warlord | Found Prototype Device 16466 | -5/Warlord | Identified Minesniffer Drone Bay 16991 | -5/Warlord | Opened side exit 17062 | -5/Warlord | Spotted Executioner 17062 | -5/Warlord | Spotted Executioner 17072 | -5/Warlord | Destroyed Executioner 17074 | -5/Warlord | Destroyed Executioner 17095 | -5/Warlord | Destroyed 11 combat bots 17105 | -5/Warlord | Lost 5 parts (1p2n2w) 17132 | -5/Warlord | Spotted B-86 Titan 17138 | -5/Warlord | Spotted Striker 17142 | -5/Warlord | Spotted B-75 Beast 17162 | -5/Warlord | Spotted Executioner 17162 | -5/Warlord | Spotted Striker 17163 | -5/Warlord | Spotted Executioner 17170 | -5/Warlord | Core integrity fell below 50% 17182 | -5/Warlord | Core integrity fell below 20% 17185 | -5/Warlord | Released all parts (8) 17186 | -5/Warlord | Destroyed by G-67 Veteran with Plasma Rifle Last Messages --------------- Lgt. Nuclear Core fries itself beyond repair. Penetrated by Slug. Critical hit. Acquired 30 matter. Lyr. Medium Armor Plating destroyed. Lgt. Nuclear Core fries itself beyond repair. Unknown Flight Unit fries itself beyond repair. Slug penetrates G-67 Veteran. Slug penetrates Earth. Hrd. Medium Armor Plating destroyed. Critical hit. Centrium Heavy Treads destroyed. Penetrated by Slug. Released Hcp. Storage Unit. Released Exp. Targeting Computer. Released Imp. Signal Interpreter. Released Hcp. Storage Unit. Released Adv. Terrain Scan Processor. Released Hcp. Storage Unit. Penetrated by Slug. Map ----- +----------------------------------------------------+ | ??????????????????????????????? | | ??????????????????????????????? | | ??????????????????????????????? | | ??????????????????????????????? | | ??????????????????????????????? | | ??????????????????????????????? | | ??????????????????????????????? | | ??????????????????????????????? | | ??????????????????????????????? | | #?????????????????????????????? | | #?????????????????????????????? | | ?????????????????????#????????? | | #??????????????????## ????????? | | #???????????#???#??# ????????? | | ??##??#????????#### ???????? | | #####?? ? ###?#?? ???????? | | ?#####?? ?? #??##? ???????# | | ??##??###? #?###?? ? ??#?? | | ??##?###### ?#?##??# ??#???# | | ??###???#?##? ###?###? ?#??##? | | ##########?? ?#### ###??#? | | ?##??#??##?# ?? ###?? | | ###?#?#####?# %# ?## ### | | ###?###?###??# ### #? | | ##??#####?#??### ## #? | | ####??###?###### # @!! # | | ?#####?#??#####?# !!K!/ | | ##############?### #[/!!!|; | | #######?########### ![!!![!# | | "############ #### h !|Kl!! | | """"""""""""## # ss%!!!## | | """"""""""" ### ## ##h gEBB # | | ## # BB BBg # | | %] =%= %i BB gb | | %!%* ! g gg%b | | ## g [%hg#E | | """""" " "" ### i h% # | | """""" " ## ##g | | "###### ###### # ;" i | | ## # ### ### ### i # | | #?## # ####### # # | | #### ? # ###### ### % # # | | ?############## #### = = ## | | ############## ##### %[ # | | ############## #### | | ?#######?##### #### # | | ############## #### = # | | ############## ##### = # | | ?############ #### % | | ############ ## " | +----------------------------------------------------+ Best States ------------- Heat Dissipation 64 Coolant Potential 65 Energy Generation 25 Energy Capacity 890 Matter Stores 300 Matter Capacity 300 Sight Range 16 Robot Scan Range 30 Terrain Scan Range 20 Terrain Scan Density 210 Armor Coverage 600 Resistance: EM 15 Weapon Shielding 66 Evasion (%) 60 Targeting Accuracy 12 Recoil Reduction 4 Particle Charging 25 Item Schematics ----------------- Exp. Sensor Array | -9/Materials | Scanalyzed Combat Drone Bay | -7/Data Miner | Free Lgt. Regenerative Plating | -7/Data Miner | Free Exp. Flexi-carbon Leg | -7/Data Miner | Free Cmb. Gravmag System | -7/Data Miner | Free Tactical Coordination Suite | -7/Data Miner | Free Mni. Smartbomb Launcher | -7/Data Miner | Free Plasma Sword | -7/Data Miner | Free Robot Schematics ------------------ S-27 Virus | -7/Data Miner | Free G-50 Soldier | -7/Data Miner | Free L-41 Fighter | -7/Data Miner | Free X-72 Disruptor | -7/Data Miner | Free I-36 Angel | -7/Data Miner | Free I-47 Archangel | -7/Data Miner | Free Fabricated ------------ Exp. Sensor Array | x1 | -7/Factory Lgt. Regenerative Plating | x1 | -6/Factory Alien Tech Used ----------------- None Achievements -------------- None Challenges ------------ None Game ------ Seed GodProtonMaul Manual? 0 Play Time 02:33:26 Cumulative 207.4 hours Start 2020.09.04 @ 13:03:59 End 2020.09.08 @ 22:56:04 Sessions 3 Manual Loads 0 Difficulty Rogue Special Mode None Game No. 222 Rogue 222 Adventurer 0 Explorer 0 Win Type - Total 8 Types 6/0/2/0/0/0/0 Lore% 74 Gallery% 84 Achievement% 62 Wizard Run 0 Options --------- ASCII 0 Keyboard 1 Movement Numpad Keybinds 0 Fullscreen 1 Font 20/SmallcapsGlow Map View 66x50 Tactical HUD 1 Map Filters NONE Filters NONE Steam 1 RUN: f8b683a9-9616-43d2-b54f-464d3eceb848